fUSD/lending_fUSD_20260616
["ID","MTS","AMOUNT","RATE_DAILY","PERIOD"]
[425147389,1781549458000,-500.0,0.00029808,14]
[425147396,1781549458000,-207.5582428,0.00029808,14]
[425147395,1781549458000,-150.0,0.00029808,14]
[425147391,1781549458000,-500.0,0.00029808,14]
[425147394,1781549458000,-150.0,0.00029808,14]
[425147444,1781549459000,-22499.99,0.0003,2]
[425147443,1781549459000,-12499.99,0.0003,2]
[425147446,1781549459000,-10000.0,0.0003,2]
[425147447,1781549459000,-2500.0,0.0003,2]
[425147448,1781549459000,-12500.0,0.0003,2]
[425147452,1781549459000,-22499.99,0.0003,2]
[425147449,1781549459000,-22500.0,0.0003,2]
[425147441,1781549459000,-2499.99,0.0003,2]
[425147451,1781549459000,-12499.99,0.0003,2]
[425147450,1781549459000,-25000.0,0.0003,2]
[425147453,1781549459000,-12500.0,0.0003,2]
[425147462,1781549459000,-6776.4,0.0003,2]
[425147455,1781549459000,-12499.99,0.0003,2]
[425147459,1781549459000,-2869.98,0.0003,2]
[425147454,1781549459000,-22499.99,0.0003,2]
[425147457,1781549459000,-3906.79,0.0003,2]
[425147431,1781549459000,-2395.96250601,0.0003,7]
[425147442,1781549459000,-24999.99,0.0003,2]
[425147460,1781549459000,-9999.99,0.0003,2]
[425147426,1781549459000,-153.7061673,0.00029985,20]
[425147428,1781549459000,-38365.39156305,0.0003,7]
[425147429,1781549459000,-38365.39156305,0.0003,7]
[425147427,1781549459000,-226.23827429,0.0002999,2]
[425147432,1781549459000,-2395.96250601,0.0003,7]
[425147430,1781549459000,-398978.97413607,0.0003,30]
[425147433,1781549459000,-1555.15,0.0003,2]
[425147435,1781549459000,-2499.99,0.0003,2]
[425147434,1781549459000,-1637.81,0.0003,2]
[425147440,1781549459000,-1230.39,0.0003,2]
[425147438,1781549459000,-24999.99,0.0003,2]
[425147437,1781549459000,-2499.99,0.0003,2]
[425147439,1781549459000,-4172.59,0.0003,2]
[425147436,1781549459000,-24999.99,0.0003,2]
[425147445,1781549459000,-401.17,0.0003,2]
[425147461,1781549459000,-2499.99,0.0003,2]
[425147479,1781549459000,-12500.0,0.0003,2]
[425147456,1781549459000,-1023.26,0.0003,2]
[425147483,1781549459000,-200.0,0.0003,2]
[425147485,1781549459000,-503.63415887,0.0003,7]
[425147484,1781549459000,-2002.39,0.0003,30]
[425147486,1781549459000,-503.63415887,0.0003,7]
[425147488,1781549459000,-462.7,0.0003,7]
[425147490,1781549459000,-1095.50463021,0.0003,10]
[425147478,1781549459000,-25000.0,0.0003,2]
[425147487,1781549459000,-200.0,0.0003,2]
[425147493,1781549459000,-503.09,0.00030037,14]
[425147492,1781549459000,-500.0,0.00030037,14]
[425147494,1781549459000,-657.43210484,0.00030065,7]
[425147495,1781549459000,-194.42980328,0.00030065,2]
[425147496,1781549459000,-706.7329375,0.00030068,7]
[425147458,1781549459000,-22500.0,0.0003,2]
[425147491,1781549459000,-661.99,0.00030012,30]
[425147482,1781549459000,-164.7,0.0003,2]
[425147489,1781549459000,-2500.0,0.0003,2]
[425147480,1781549459000,-22500.0,0.0003,2]
[425147466,1781549459000,-2500.0,0.0003,2]
[425147481,1781549459000,-150.0,0.0003,2]
[425147463,1781549459000,-12500.0,0.0003,2]
[425147467,1781549459000,-2648.95,0.0003,2]
[425147468,1781549459000,-25000.0,0.0003,2]
[425147464,1781549459000,-15000.0,0.0003,2]
[425147474,1781549459000,-22500.0,0.0003,2]
[425147471,1781549459000,-22499.99,0.0003,2]
[425147465,1781549459000,-22500.0,0.0003,2]
[425147470,1781549459000,-24999.99,0.0003,2]
[425147472,1781549459000,-2499.99,0.0003,2]
[425147475,1781549459000,-25000.0,0.0003,2]
[425147473,1781549459000,-200.0,0.0003,2]
[425147476,1781549459000,-12499.99,0.0003,2]
[425147477,1781549459000,-9999.96,0.0003,2]
[425147469,1781549459000,-12499.99,0.0003,2]
[425147518,1781549460000,-698.581195,0.00030074,7]
[425147522,1781549460000,-619.22995891,0.00030074,5]
[425147516,1781549460000,-454.34583235,0.00030068,7]
[425147523,1781549460000,-731.71467509,0.00030074,2]
[425147519,1781549460000,-450.75239774,0.00030074,7]
[425147520,1781549460000,-407.05292962,0.00030074,7]
[425147521,1781549460000,-514.40864857,0.00030074,7]
[425147528,1781549460000,-188.67425082,0.00030074,7]
[425147530,1781549460000,-438.622038,0.000301,7]
[425147527,1781549460000,-151.7787557,0.00030074,7]
[425147526,1781549460000,-203.39309559,0.00030074,7]
[425147531,1781549460000,-438.622038,0.000301,14]
[425147529,1781549460000,-602.64,0.000301,7]
[425147517,1781549460000,-211.82838949,0.00030074,7]
[425147525,1781549460000,-177.02708894,0.00030074,7]
[425147514,1781549460000,-221.07674386,0.00030068,7]
[425147499,1781549460000,-424.36576126,0.00030068,7]
[425147515,1781549460000,-564.98432391,0.00030068,7]
[425147497,1781549460000,-163.27293081,0.00030068,7]
[425147533,1781549460000,-22500.0,0.00030125,2]
[425147498,1781549460000,-212.9771611,0.00030068,7]
[425147502,1781549460000,-304.0452185,0.00030068,7]
[425147500,1781549460000,-211.23978581,0.00030068,7]
[425147505,1781549460000,-184.45124002,0.00030068,7]
[425147501,1781549460000,-200.27297557,0.00030068,7]
[425147512,1781549460000,-408.88705728,0.00030068,7]
[425147504,1781549460000,-206.31391762,0.00030068,7]
[425147506,1781549460000,-221.50823603,0.00030068,7]
[425147507,1781549460000,-172.75360003,0.00030068,7]
[425147508,1781549460000,-171.29654609,0.00030068,7]
[425147511,1781549460000,-157.22505773,0.00030068,7]
[425147510,1781549460000,-389.7033202,0.00030068,2]
[425147509,1781549460000,-440.27894487,0.00030068,2]
[425147513,1781549460000,-469.84275355,0.00030068,7]
[425147503,1781549460000,-532.41738244,0.00030068,7]
[425147532,1781549460000,-12500.0,0.00030125,2]
[425147524,1781549460000,-159.91427372,0.00030074,7]
[425147537,1781549460000,-300.2098304,0.00030137,2]
[425147556,1781549460000,-154.0,0.00030144,30]
[425147557,1781549460000,-247.0,0.00030147,30]
[425147558,1781549460000,-1311.0,0.00030147,30]
[425147559,1781549460000,-189.0,0.00030147,30]
[425147560,1781549460000,-229.0,0.00030147,30]
[425147562,1781549460000,-220.0,0.00030147,30]
[425147561,1781549460000,-256.0,0.00030147,30]
[425147554,1781549460000,-404.0,0.00030144,30]
[425147563,1781549460000,-153.0,0.00030147,30]
[425147564,1781549460000,-1561.0,0.00030147,30]
[425147568,1781549460000,-403.94,0.000302,2]
[425147567,1781549460000,-601.46,0.000302,2]
[425147569,1781549460000,-601.46,0.000302,2]
[425147571,1781549460000,-235.1,0.00030239,2]
[425147570,1781549460000,-1368.72,0.0003023,5]
[425147535,1781549460000,-12500.0,0.00030125,2]
[425147566,1781549460000,-314.98590531,0.00030191,7]
[425147555,1781549460000,-151.0,0.00030144,30]
[425147565,1781549460000,-380.18103411,0.00030191,7]
[425147552,1781549460000,-154.0,0.00030144,30]
[425147534,1781549460000,-18086.87,0.00030125,2]
[425147553,1781549460000,-159.0,0.00030144,30]
[425147536,1781549460000,-325.98,0.00030137,2]
[425147540,1781549460000,-500.0,0.00030137,3]
[425147538,1781549460000,-205.65391218,0.00030137,40]
[425147548,1781549460000,-232.01,0.00030137,120]
[425147549,1781549460000,-363.25,0.00030137,120]
[425147542,1781549460000,-500.0,0.00030137,3]
[425147539,1781549460000,-500.0,0.00030137,3]
[425147541,1781549460000,-500.0,0.00030137,3]
[425147546,1781549460000,-500.0,0.00030137,3]
[425147544,1781549460000,-500.0,0.00030137,3]
[425147545,1781549460000,-500.0,0.00030137,3]
[425147543,1781549460000,-152.3591,0.00030137,30]
[425147547,1781549460000,-674.0,0.00030137,30]
[425147551,1781549460000,-1372.0,0.00030144,30]
[425147550,1781549460000,-614.7,0.00030137,7]
[425147600,1781549461000,-661.99,0.00030635,30]
[425147605,1781549461000,-500.0,0.00030656,20]
[425147602,1781549461000,-883.41617187,0.00030643,7]
[425147598,1781549461000,-5000.0,0.00030627,7]
[425147597,1781549461000,-22500.0,0.00030625,2]
[425147596,1781549461000,-12500.0,0.00030625,2]
[425147603,1781549461000,-873.22649375,0.00030649,7]
[425147599,1781549461000,-5000.0,0.0003063,7]
[425147604,1781549461000,-914.64334387,0.00030649,2]
[425147614,1781549461000,-438.622038,0.000307,14]
[425147607,1781549461000,-1218.88,0.00030683,7]
[425147608,1781549461000,-185.13,0.00030694,2]
[425147610,1781549461000,-6078.0,0.00030698,2]
[425147613,1781549461000,-438.622038,0.000307,7]
[425147615,1781549461000,-406.0,0.00030701,2]
[425147609,1781549461000,-3558.0,0.00030698,2]
[425147611,1781549461000,-3645.0,0.00030698,2]
[425147612,1781549461000,-602.64,0.000307,7]
[425147594,1781549461000,-462.7,0.000306,7]
[425147606,1781549461000,-151.98334777,0.00030677,120]
[425147595,1781549461000,-317.56,0.000306,7]
[425147575,1781549461000,-22500.0,0.0003025,2]
[425147591,1781549461000,-22500.0,0.000305,2]
[425147617,1781549461000,-250.0,0.00030728,7]
[425147573,1781549461000,-25000.0,0.0003025,2]
[425147572,1781549461000,-2500.0,0.0003025,2]
[425147574,1781549461000,-12500.0,0.0003025,2]
[425147577,1781549461000,-4415.0,0.00030375,5]
[425147576,1781549461000,-2500.0,0.0003025,2]
[425147582,1781549461000,-435.622038,0.000304,14]
[425147579,1781549461000,-22500.0,0.00030375,2]
[425147584,1781549461000,-238.6,0.00030411,120]
[425147590,1781549461000,-12500.0,0.000305,2]
[425147581,1781549461000,-441.622038,0.000304,7]
[425147578,1781549461000,-12500.0,0.00030375,2]
[425147586,1781549461000,-1368.72,0.00030435,2]
[425147583,1781549461000,-441.622038,0.000304,14]
[425147580,1781549461000,-435.622038,0.000304,7]
[425147587,1781549461000,-239.66069099,0.00030493,2]
[425147588,1781549461000,-2500.0,0.000305,2]
[425147589,1781549461000,-25000.0,0.000305,2]
[425147592,1781549461000,-1368.71,0.0003059,2]
[425147593,1781549461000,-1368.72,0.00030591,5]
[425147585,1781549461000,-1368.71,0.00030413,2]
[425147625,1781549461000,-150.0,0.00030767,7]
[425147601,1781549461000,-821.79013105,0.00030639,7]
[425147618,1781549461000,-2500.0,0.0003075,2]
[425147645,1781549461000,-22500.0,0.00031,2]
[425147642,1781549461000,-3169.93923176,0.00030937,4]
[425147649,1781549461000,-441.622038,0.00031,14]
[425147648,1781549461000,-435.622038,0.00031,14]
[425147647,1781549461000,-441.622038,0.00031,7]
[425147646,1781549461000,-435.622038,0.00031,7]
[425147650,1781549461000,-150.0,0.00031011,2]
[425147651,1781549461000,-268.0,0.00031018,10]
[425147653,1781549461000,-22500.0,0.00031125,2]
[425147644,1781549461000,-25000.0,0.00031,2]
[425147652,1781549461000,-401.14229915,0.00031075,25]
[425147654,1781549461000,-1372.0,0.00031144,30]
[425147659,1781549461000,-154.0,0.00031144,30]
[425147658,1781549461000,-151.0,0.00031144,30]
[425147656,1781549461000,-159.0,0.00031144,30]
[425147660,1781549461000,-247.0,0.00031147,30]
[425147661,1781549461000,-1311.0,0.00031147,30]
[425147663,1781549461000,-229.0,0.00031147,30]
[425147662,1781549461000,-189.0,0.00031147,30]
[425147616,1781549461000,-1734.68,0.00030728,2]
[425147655,1781549461000,-154.0,0.00031144,30]
[425147643,1781549461000,-2500.0,0.00031,2]
[425147657,1781549461000,-404.0,0.00031144,30]
[425147640,1781549461000,-3390.18454763,0.00030937,4]
[425147638,1781549461000,-3919.54,0.00030875,2]
[425147619,1781549461000,-25000.0,0.0003075,2]
[425147620,1781549461000,-12500.0,0.0003075,2]
[425147622,1781549461000,-150.0,0.00030767,7]
[425147623,1781549461000,-150.0,0.00030767,7]
[425147621,1781549461000,-22500.0,0.0003075,2]
[425147626,1781549461000,-299.0,0.00030767,7]
[425147629,1781549461000,-300.0,0.00030822,30]
[425147627,1781549461000,-4502.0,0.00030808,5]
[425147631,1781549461000,-300.0,0.00030822,30]
[425147624,1781549461000,-150.0,0.00030767,7]
[425147628,1781549461000,-300.0,0.00030822,30]
[425147633,1781549461000,-298.0,0.00030822,30]
[425147641,1781549461000,-1941.55733245,0.00030937,4]
[425147635,1781549461000,-150.0,0.00030875,2]
[425147664,1781549461000,-256.0,0.00031147,30]
[425147637,1781549461000,-193.90060245,0.00030875,2]
[425147636,1781549461000,-150.0,0.00030875,2]
[425147634,1781549461000,-150.0,0.00030875,2]
[425147632,1781549461000,-300.0,0.00030822,30]
[425147630,1781549461000,-300.0,0.00030822,30]
[425147639,1781549461000,-22500.0,0.00030875,2]
[425147687,1781549462000,-441.622038,0.000315,7]
[425147697,1781549462000,-150.0,0.0003161,2]
[425147686,1781549462000,-435.622038,0.000315,7]
[425147689,1781549462000,-441.622038,0.000315,14]
[425147688,1781549462000,-435.622038,0.000315,14]
[425147690,1781549462000,-986.14815726,0.00031501,7]
[425147685,1781549462000,-22500.0,0.000315,2]
[425147695,1781549462000,-150.0,0.0003161,2]
[425147696,1781549462000,-150.0,0.0003161,2]
[425147692,1781549462000,-1097.57201264,0.0003151,2]
[425147693,1781549462000,-981.5735243,0.0003151,7]
[425147698,1781549462000,-150.0,0.0003161,2]
[425147701,1781549462000,-150.0,0.0003161,2]
[425147684,1781549462000,-25000.0,0.000315,2]
[425147700,1781549462000,-150.0,0.0003161,2]
[425147694,1781549462000,-644.15,0.00031518,2]
[425147683,1781549462000,-2500.0,0.000315,2]
[425147670,1781549462000,-462.7,0.000312,7]
[425147682,1781549462000,-22500.0,0.00031375,2]
[425147702,1781549462000,-150.0,0.0003161,2]
[425147665,1781549462000,-220.0,0.00031147,30]
[425147666,1781549462000,-153.0,0.00031147,30]
[425147667,1781549462000,-1561.0,0.00031147,30]
[425147668,1781549462000,-150.0,0.00031178,14]
[425147669,1781549462000,-1000.0,0.000312,7]
[425147671,1781549462000,-438.622038,0.000312,7]
[425147681,1781549462000,-3169.93923176,0.00031319,4]
[425147672,1781549462000,-438.622038,0.000312,14]
[425147674,1781549462000,-2500.0,0.0003125,2]
[425147675,1781549462000,-25000.0,0.0003125,2]
[425147676,1781549462000,-22500.0,0.0003125,2]
[425147677,1781549462000,-661.99,0.00031258,30]
[425147678,1781549462000,-602.64,0.000313,7]
[425147679,1781549462000,-3390.18454763,0.00031319,4]
[425147680,1781549462000,-1941.55733245,0.00031319,4]
[425147673,1781549462000,-151.0,0.00031247,7]
[425147699,1781549462000,-150.0,0.0003161,2]
[425147691,1781549462000,-1047.87179251,0.0003151,7]
[425147705,1781549462000,-1941.55733245,0.00031701,30]
[425147728,1781549462000,-636.0,0.00031849,30]
[425147726,1781549462000,-650.0,0.00031849,30]
[425147723,1781549462000,-650.0,0.00031849,30]
[425147729,1781549462000,-22500.0,0.00031875,2]
[425147727,1781549462000,-650.0,0.00031849,30]
[425147730,1781549462000,-1001.0,0.00031945,120]
[425147733,1781549462000,-25000.0,0.00032,2]
[425147731,1781549462000,-151.0,0.00031997,7]
[425147734,1781549462000,-22500.0,0.00032,2]
[425147737,1781549462000,-3390.18454763,0.00032082,30]
[425147732,1781549462000,-2500.0,0.00032,2]
[425147735,1781549462000,-602.64,0.00032,7]
[425147738,1781549462000,-1941.55733245,0.00032082,30]
[425147741,1781549462000,-441.622038,0.000321,7]
[425147740,1781549462000,-435.622038,0.000321,7]
[425147739,1781549462000,-3169.93923176,0.00032082,30]
[425147704,1781549462000,-3390.18454763,0.00031701,30]
[425147725,1781549462000,-650.0,0.00031849,30]
[425147724,1781549462000,-650.0,0.00031849,30]
[425147736,1781549462000,-150.32025,0.00032025,2]
[425147721,1781549462000,-1179.96,0.00031841,7]
[425147703,1781549462000,-22500.0,0.00031625,2]
[425147722,1781549462000,-150.0,0.00031849,30]
[425147706,1781549462000,-3169.93923176,0.00031701,30]
[425147707,1781549462000,-200.0,0.00031715,7]
[425147710,1781549462000,-200.0,0.00031715,7]
[425147712,1781549462000,-200.0,0.00031715,7]
[425147709,1781549462000,-200.0,0.00031715,7]
[425147713,1781549462000,-200.0,0.00031715,7]
[425147711,1781549462000,-200.0,0.00031715,7]
[425147714,1781549462000,-200.0,0.00031715,7]
[425147717,1781549462000,-25000.0,0.0003175,2]
[425147718,1781549462000,-22500.0,0.0003175,2]
[425147715,1781549462000,-343.0,0.00031715,7]
[425147716,1781549462000,-2500.0,0.0003175,2]
[425147719,1781549462000,-438.622038,0.000318,7]
[425147708,1781549462000,-200.0,0.00031715,7]
[425147720,1781549462000,-438.622038,0.000318,14]
[425147774,1781549463000,-150.0,0.00032345,2]
[425147778,1781549463000,-22500.0,0.00032375,2]
[425147783,1781549463000,-3169.93923176,0.00032464,30]
[425147779,1781549463000,-1000.0,0.000324,120]
[425147785,1781549463000,-17738.45,0.000325,2]
[425147775,1781549463000,-150.0,0.00032345,2]
[425147784,1781549463000,-2500.0,0.000325,2]
[425147777,1781549463000,-150.0,0.00032345,2]
[425147782,1781549463000,-1941.55733245,0.00032464,30]
[425147776,1781549463000,-150.0,0.00032345,2]
[425147773,1781549463000,-150.0,0.00032345,2]
[425147781,1781549463000,-3390.18454763,0.00032464,30]
[425147780,1781549463000,-1434.90345,0.000324,120]
[425147795,1781549463000,-435.622038,0.000326,14]
[425147798,1781549463000,-1734.68,0.00032648,2]
[425147788,1781549463000,-1817.2,0.00032541,5]
[425147797,1781549463000,-22500.0,0.00032625,2]
[425147789,1781549463000,-150.0,0.00032548,14]
[425147786,1781549463000,-22500.0,0.000325,2]
[425147791,1781549463000,-176.26,0.00032548,120]
[425147793,1781549463000,-435.622038,0.000326,7]
[425147790,1781549463000,-217.95,0.00032548,120]
[425147794,1781549463000,-441.622038,0.000326,7]
[425147792,1781549463000,-150.0,0.00032562,2]
[425147796,1781549463000,-441.622038,0.000326,14]
[425147771,1781549463000,-150.0,0.00032345,2]
[425147787,1781549463000,-150.0,0.00032534,30]
[425147770,1781549463000,-210.79390016,0.00032344,14]
[425147749,1781549463000,-151.0,0.00032144,30]
[425147766,1781549463000,-438.622038,0.000323,14]
[425147810,1781549463000,-500.0,0.00032876,30]
[425147742,1781549463000,-435.622038,0.000321,14]
[425147748,1781549463000,-404.0,0.00032144,30]
[425147743,1781549463000,-441.622038,0.000321,14]
[425147747,1781549463000,-159.0,0.00032144,30]
[425147745,1781549463000,-1372.0,0.00032144,30]
[425147744,1781549463000,-22500.0,0.00032125,2]
[425147746,1781549463000,-154.0,0.00032144,30]
[425147750,1781549463000,-154.0,0.00032144,30]
[425147760,1781549463000,-2500.0,0.0003225,2]
[425147752,1781549463000,-1311.0,0.00032147,30]
[425147754,1781549463000,-229.0,0.00032147,30]
[425147756,1781549463000,-220.0,0.00032147,30]
[425147753,1781549463000,-189.0,0.00032147,30]
[425147751,1781549463000,-247.0,0.00032147,30]
[425147755,1781549463000,-256.0,0.00032147,30]
[425147757,1781549463000,-153.0,0.00032147,30]
[425147759,1781549463000,-235.1,0.0003221,5]
[425147758,1781549463000,-1561.0,0.00032147,30]
[425147761,1781549463000,-25000.0,0.0003225,2]
[425147763,1781549463000,-218.59,0.000323,30]
[425147762,1781549463000,-22500.0,0.0003225,2]
[425147765,1781549463000,-438.622038,0.000323,7]
[425147764,1781549463000,-248.8,0.000323,30]
[425147772,1781549463000,-150.0,0.00032345,2]
[425147768,1781549463000,-396.19,0.0003234,2]
[425147767,1781549463000,-306.46,0.00032338,2]
[425147769,1781549463000,-208.22595019,0.00032344,14]
[425147800,1781549463000,-18191.11,0.0003275,2]
[425147828,1781549463000,-438.622038,0.000329,14]
[425147799,1781549463000,-2500.0,0.0003275,2]
[425147835,1781549463000,-150.0,0.00032955,2]
[425147846,1781549463000,-168.38761709,0.00033123,120]
[425147841,1781549463000,-150.0,0.0003308,2]
[425147839,1781549463000,-150.0,0.0003308,2]
[425147837,1781549463000,-441.36,0.00032996,2]
[425147836,1781549463000,-290.91146036,0.00032955,2]
[425147840,1781549463000,-150.0,0.0003308,2]
[425147838,1781549463000,-2500.0,0.00033,2]
[425147842,1781549463000,-150.0,0.0003308,2]
[425147844,1781549463000,-150.0,0.0003308,2]
[425147845,1781549463000,-455.97833804,0.00033123,120]
[425147848,1781549463000,-154.0,0.00033144,30]
[425147847,1781549463000,-1372.0,0.00033144,30]
[425147858,1781549463000,-220.0,0.00033147,30]
[425147852,1781549463000,-162.0,0.00033144,30]
[425147853,1781549463000,-247.0,0.00033147,30]
[425147850,1781549463000,-404.0,0.00033144,30]
[425147849,1781549463000,-159.0,0.00033144,30]
[425147851,1781549463000,-151.0,0.00033144,30]
[425147854,1781549463000,-1311.0,0.00033147,30]
[425147856,1781549463000,-229.0,0.00033147,30]
[425147857,1781549463000,-256.0,0.00033147,30]
[425147855,1781549463000,-189.0,0.00033147,30]
[425147860,1781549463000,-1561.0,0.00033147,30]
[425147859,1781549463000,-153.0,0.00033147,30]
[425147811,1781549463000,-500.0,0.00032876,30]
[425147861,1781549463000,-500.0,0.0003315,30]
[425147834,1781549463000,-150.0,0.00032955,2]
[425147832,1781549463000,-510.19461224,0.00032955,2]
[425147843,1781549463000,-150.0,0.0003308,2]
[425147829,1781549463000,-500.0,0.00032955,2]
[425147803,1781549463000,-3390.18454763,0.00032846,30]
[425147801,1781549463000,-1068.47580446,0.00032796,7]
[425147802,1781549463000,-1280.50068141,0.00032803,2]
[425147804,1781549463000,-1941.55733245,0.00032846,30]
[425147806,1781549463000,-614.7,0.00032862,7]
[425147805,1781549463000,-3169.93923176,0.00032846,30]
[425147807,1781549463000,-500.0,0.00032876,30]
[425147808,1781549463000,-500.0,0.00032876,30]
[425147809,1781549463000,-500.0,0.00032876,30]
[425147813,1781549463000,-604.0,0.00032876,30]
[425147815,1781549463000,-351.72,0.00032877,2]
[425147814,1781549463000,-325.98,0.00032877,2]
[425147817,1781549463000,-500.0,0.00032877,2]
[425147816,1781549463000,-500.0,0.00032877,2]
[425147812,1781549463000,-500.0,0.00032876,30]
[425147833,1781549463000,-247.75880986,0.00032955,2]
[425147830,1781549463000,-500.0,0.00032955,2]
[425147819,1781549463000,-500.0,0.00032877,2]
[425147831,1781549463000,-500.0,0.00032955,2]
[425147825,1781549463000,-226.86,0.000329,120]
[425147827,1781549463000,-438.622038,0.000329,7]
[425147824,1781549463000,-303.695022,0.00032877,120]
[425147826,1781549463000,-330.52,0.000329,120]
[425147823,1781549463000,-500.0,0.00032877,2]
[425147822,1781549463000,-1700.0,0.00032877,120]
[425147820,1781549463000,-500.0,0.00032877,2]
[425147818,1781549463000,-500.0,0.00032877,2]
[425147821,1781549463000,-432.59744951,0.00032877,2]
[425147897,1781549464000,-1796.331,0.00033698,2]
[425147900,1781549464000,-218.59,0.000337,14]
[425147899,1781549464000,-3645.0,0.00033698,2]
[425147901,1781549464000,-248.8,0.000337,14]
[425147908,1781549464000,-150.0,0.00033815,2]
[425147895,1781549464000,-1941.55733245,0.0003361,30]
[425147907,1781549464000,-150.0,0.00033815,2]
[425147903,1781549464000,-37131.95743347,0.000337,7]
[425147906,1781549464000,-228.78956075,0.00033753,2]
[425147893,1781549464000,-726.16259651,0.000336,2]
[425147902,1781549464000,-435.622038,0.000337,7]
[425147898,1781549464000,-6078.0,0.00033698,2]
[425147904,1781549464000,-53105.877,0.00033738,28]
[425147917,1781549464000,-3390.18454763,0.00033992,30]
[425147909,1781549464000,-150.0,0.00033815,2]
[425147911,1781549464000,-150.0,0.00033815,2]
[425147912,1781549464000,-154.98927,0.00033816,120]
[425147920,1781549464000,-2500.0,0.00034,2]
[425147921,1781549464000,-462.7,0.00034,30]
[425147910,1781549464000,-150.0,0.00033815,2]
[425147915,1781549464000,-150.0,0.00033918,14]
[425147914,1781549464000,-150.0,0.00033904,30]
[425147918,1781549464000,-1941.55733245,0.00033992,30]
[425147919,1781549464000,-3169.93923176,0.00033992,30]
[425147916,1781549464000,-151.98334777,0.00033951,120]
[425147913,1781549464000,-150.338613,0.00033861,2]
[425147892,1781549464000,-401.14229915,0.00033519,25]
[425147905,1781549464000,-2500.0,0.0003375,2]
[425147889,1781549464000,-151.442304,0.00033486,120]
[425147869,1781549464000,-435.622038,0.000332,7]
[425147888,1781549464000,-438.622038,0.000334,7]
[425147933,1781549464000,-220.0,0.00034147,30]
[425147868,1781549464000,-177.285836,0.00033177,120]
[425147870,1781549464000,-441.622038,0.000332,7]
[425147864,1781549464000,-500.0,0.0003315,30]
[425147871,1781549464000,-435.622038,0.000332,14]
[425147865,1781549464000,-500.0,0.0003315,30]
[425147863,1781549464000,-500.0,0.0003315,30]
[425147862,1781549464000,-500.0,0.0003315,30]
[425147867,1781549464000,-522.587,0.0003315,30]
[425147866,1781549464000,-500.0,0.0003315,30]
[425147882,1781549464000,-949.64,0.00033364,2]
[425147872,1781549464000,-4458.0,0.00033201,5]
[425147883,1781549464000,-949.64,0.00033364,2]
[425147894,1781549464000,-3390.18454763,0.0003361,30]
[425147874,1781549464000,-3390.18454763,0.00033228,30]
[425147876,1781549464000,-3169.93923176,0.00033228,30]
[425147875,1781549464000,-1941.55733245,0.00033228,30]
[425147877,1781549464000,-2500.0,0.0003325,2]
[425147878,1781549464000,-182.0,0.00033315,10]
[425147880,1781549464000,-949.64,0.0003336,2]
[425147879,1781549464000,-348.14337737,0.00033316,120]
[425147881,1781549464000,-949.64,0.00033362,2]
[425147884,1781549464000,-949.64,0.00033366,2]
[425147886,1781549464000,-949.62,0.00033368,2]
[425147891,1781549464000,-1818.15,0.000335,5]
[425147885,1781549464000,-949.64,0.00033366,2]
[425147887,1781549464000,-949.64,0.00033368,2]
[425147896,1781549464000,-3169.93923176,0.0003361,30]